bitfinex-derivatives/quotes_BNBF0:USTF0_20251010
["timestamp","ask_amount","ask_price","bid_price","bid_amount"]
[1760079149837,0.38708682,1271.6,1271.5,0.54137683]
[1760079150035,0.38708682,1271.6,1271.5,1.12394422]
[1760079150234,0.38708682,1271.6,1271.5,0.54137683]
[1760079150436,0.38708682,1271.6,1271.5,1.12394422]
[1760079150837,0.38708682,1271.6,1271.5,0.54137683]
[1760079161244,0.38708682,1271.6,1270.9,0.58256739]
[1760079161544,0.38708682,1271.6,1271.0,0.5434148]
[1760079161742,0.38708682,1271.6,1271.1,0.5434148]
[1760079161943,0.38708682,1271.6,1271.2,0.5434148]
[1760079162142,0.38708682,1271.6,1271.3,0.5434148]
[1760079162346,0.38708682,1271.6,1270.9,0.58256739]
[1760079162347,0.38708682,1271.6,1271.4,0.54341889]
[1760079162544,0.38708682,1271.6,1270.9,0.58256739]
[1760079162745,0.38708682,1271.6,1271.0,0.54340947]
[1760079162943,0.38708682,1271.6,1271.1,0.54340947]
[1760079163148,0.38708682,1271.6,1271.2,0.54340947]
[1760079163347,0.38708682,1271.6,1271.3,0.54340947]
[1760079163548,0.38708682,1271.6,1271.4,0.54340947]
[1760079163749,0.38708682,1271.6,1270.9,0.58256739]
[1760079163944,0.38708682,1271.6,1271.0,0.5433989]
[1760079164147,0.38708682,1271.6,1271.1,0.5433989]
[1760079164444,0.38708682,1271.6,1271.2,0.5433989]
[1760079164645,0.38708682,1271.6,1271.3,0.5433989]
[1760079164843,0.38708682,1271.6,1271.4,0.5433989]
[1760079165048,0.38708682,1271.6,1270.9,0.58256739]
[1760079165246,0.38708682,1271.6,1271.0,0.54334466]
[1760079165448,0.38708682,1271.6,1271.1,0.54334466]
[1760079165644,0.38708682,1271.6,1271.2,0.54334466]
[1760079165848,0.38708682,1271.6,1270.7,0.58256739]
[1760079166050,0.38708682,1271.6,1270.8,0.54338102]
[1760079166345,0.38708682,1271.6,1270.9,0.54338102]
[1760079166545,0.38708682,1271.6,1271.0,0.54338102]
[1760079166845,0.38708682,1271.6,1271.1,0.54338102]
[1760079167049,0.38708682,1271.6,1271.2,0.54338102]
[1760079167249,0.38708682,1271.6,1270.3,0.1951832]
[1760079167550,0.19383483,1270.5,1270.4,0.54331061]
[1760079167950,0.38708682,1271.6,1270.4,0.54331061]
[1760079168145,0.38708682,1271.6,1270.5,0.54331061]
[1760079168445,0.38708682,1271.6,1270.6,0.54331061]
[1760079168647,0.38708682,1271.6,1270.7,0.54331061]
[1760079168945,0.38708682,1271.6,1270.8,0.54331061]
[1760079169247,0.38708682,1271.6,1270.9,0.54331061]
[1760079169450,0.38708682,1271.6,1270.2,0.77775059]
[1760079169651,0.19369554,1270.4,1270.3,0.54300489]
[1760079171153,0.38708682,1271.6,1270.3,0.54300489]
[1760079171446,0.38708682,1271.6,1270.4,0.54300489]
[1760079171649,0.38708682,1271.6,1270.2,0.58557763]
[1760079171650,0.38708682,1271.6,1270.5,0.54300489]
[1760079171853,0.38708682,1271.6,1270.6,0.54300489]
[1760079172051,0.38708682,1271.6,1270.2,0.58557763]
[1760079172253,0.38708682,1271.6,1270.3,0.542557]
[1760079172452,0.38708682,1271.6,1270.4,0.542557]
[1760079172650,0.38708682,1271.6,1270.5,0.542557]
[1760079172854,0.38708682,1271.6,1270.6,0.542557]
[1760079173050,0.38708682,1271.6,1270.7,0.542557]
[1760079173251,0.38708682,1271.6,1270.2,0.58557763]
[1760079173456,0.38708682,1271.6,1270.3,0.54203398]
[1760079173656,0.38708682,1271.6,1270.4,0.54203398]
[1760079173858,0.38708682,1271.6,1270.5,0.54203398]
[1760079174056,0.38708682,1271.6,1270.6,0.54203398]
[1760079174255,0.38708682,1271.6,1270.7,0.54203398]
[1760079174459,0.38708682,1271.6,1270.2,0.58557763]
[1760079174655,0.38708682,1271.6,1270.3,0.54185948]
[1760079174955,0.38708682,1271.6,1270.4,0.54185948]
[1760079175160,0.38708682,1271.6,1270.5,0.54185948]
[1760079175358,0.38708682,1271.6,1270.6,0.54185948]
[1760079175657,0.38708682,1271.6,1270.7,0.54185948]
[1760079175860,0.38708682,1271.6,1270.1,0.58557763]
[1760079176058,0.38708682,1271.6,1270.2,0.54170359]
[1760079176258,0.38708682,1271.6,1270.3,0.54170359]
[1760079176461,0.38708682,1271.6,1270.4,0.54170359]
[1760079176663,0.38708682,1271.6,1270.5,0.54170359]
[1760079176856,0.38708682,1271.6,1270.6,0.54170359]
[1760079177057,0.38708682,1271.6,1270.7,0.54170359]
[1760079177257,0.38708682,1271.6,1270.1,0.58557763]
[1760079177461,0.38708682,1271.6,1270.2,0.54147515]
[1760079177661,0.38708682,1271.6,1270.3,0.54147515]
[1760079177962,0.38708682,1271.6,1270.4,0.54147515]
[1760079178163,0.38708682,1271.6,1270.5,0.54147515]
[1760079178361,0.38708682,1271.6,1270.6,0.54147515]
[1760079178558,0.38708682,1271.6,1270.7,0.54147515]
[1760079178759,0.38708682,1271.6,1270.8,0.54147515]
[1760079178958,0.38708682,1271.6,1270.9,0.54147515]
[1760079179156,0.38708682,1271.6,1271.0,0.54147515]
[1760079179359,0.38708682,1271.6,1270.4,0.58557763]
[1760079179558,0.38708682,1271.6,1270.5,0.54130205]
[1760079179858,0.38708682,1271.6,1270.6,0.54130205]
[1760079180057,0.38708682,1271.6,1270.7,0.54130205]
[1760079180262,0.38708682,1271.6,1270.8,0.54130205]
[1760079180463,0.38708682,1271.6,1270.9,0.54130205]
[1760079180658,0.38708682,1271.6,1271.0,0.54130205]
[1760079180962,0.38708682,1271.6,1270.4,0.58557763]
[1760079181160,0.38708682,1271.6,1270.5,0.5412947]
[1760079181358,0.38708682,1271.6,1270.6,0.5412947]
[1760079181561,0.38708682,1271.6,1270.7,0.5412947]
[1760079181761,0.38708682,1271.6,1270.8,0.5412947]
[1760079181962,0.38708682,1271.6,1270.9,0.5412947]
[1760079182158,0.38708682,1271.6,1270.2,0.78061996]
[1760079182159,0.38708682,1271.6,1270.2,0.58557763]
[1760079182458,0.38708682,1271.6,1270.1,0.1951832]
[1760079182459,0.38708682,1271.6,1270.3,0.54127466]
[1760079182659,0.38708682,1271.6,1270.4,0.54127466]
[1760079182858,0.38708682,1271.6,1270.5,0.54127466]
[1760079183160,0.38708682,1271.6,1270.6,0.54127466]
[1760079183359,0.38708682,1271.6,1270.0,0.58557763]
[1760079183558,0.19302234,1270.1,1270.0,0.58557763]
[1760079183761,0.19302234,1270.1,1270.0,0.54116785]
[1760079184260,0.19302234,1270.2,1270.0,0.54116785]
[1760079184461,0.19302234,1270.2,1270.1,1.12483042]
[1760079184666,0.19302234,1270.2,1270.1,0.54116785]
[1760079184866,0.19302234,1270.2,1270.1,1.32178781]
[1760079185062,0.19302234,1270.2,1270.1,1.71068335]
[1760079186068,0.19302234,1270.2,1270.1,0.54116785]
[1760079202976,0.19302234,1270.2,1270.1,2.48478975]
[1760079205584,0.19302234,1270.2,1270.1,0.54116785]
[1760079206081,0.19302234,1270.2,1270.1,2.48651515]
[1760079206584,0.19302234,1270.2,1270.1,0.54116785]
[1760079216792,0.19302234,1270.2,1270.1,2.48532685]
[1760079217088,0.19302234,1270.2,1270.1,0.54116785]
[1760079220691,0.19302234,1270.2,1270.1,2.48532685]
[1760079221292,0.19302234,1270.2,1270.1,0.54116785]
[1760079223798,0.19302234,1270.2,1270.1,2.48532685]
[1760079224699,0.19302234,1270.2,1270.1,0.54116785]
[1760079226901,0.19302234,1270.2,1270.1,2.48532685]
[1760079227302,0.19302234,1270.2,1270.1,0.54116785]
[1760079245617,0.19302234,1270.2,1270.1,2.48532685]
[1760079246118,0.19302234,1270.2,1270.1,0.54116785]
[1760079249520,0.19302234,1270.2,1270.1,2.50013411]
[1760079250019,0.19302234,1270.2,1270.1,0.54116785]
[1760079250315,0.19302234,1270.2,1270.1,3.22124375]
[1760079251319,0.19302234,1270.2,1270.1,0.54116785]
[1760079252217,0.19302234,1270.2,1270.1,2.50021595]
[1760079254823,0.19302234,1270.2,1270.1,0.54116785]
[1760079262732,0.19302234,1270.2,1270.1,3.22124375]
[1760079263735,0.19302234,1270.2,1270.1,0.54116785]
[1760079267033,0.19302234,1270.2,1270.1,2.50011895]
[1760079268735,0.19302234,1270.2,1270.1,0.54116785]
[1760079274139,0.19302234,1270.2,1270.1,2.50035305]
[1760079275136,0.19302234,1270.2,1270.1,0.54116785]
[1760079297262,0.19302234,1270.2,1270.1,0.5438968]
[1760079303165,0.19302234,1270.2,1270.1,1.71709806]
[1760079304467,0.19302234,1270.2,1270.1,0.5438968]
[1760079306772,0.19302234,1270.2,1270.1,1.7155755]
[1760079307573,0.19302234,1270.2,1270.1,1.7153566]
[1760079308177,0.19302234,1270.2,1270.1,0.5438968]
[1760079335897,0.19302234,1270.2,1270.1,1.7173861]
[1760079336197,0.19302234,1270.2,1270.1,0.5438968]
[1760079336498,0.19302234,1270.2,1270.1,1.7173861]
[1760079337596,0.19302234,1270.2,1270.1,0.5438968]
[1760079338696,0.19302234,1270.2,1270.1,1.32602936]
[1760079338901,0.19302234,1270.2,1270.1,0.73944513]
[1760079340997,0.19302234,1270.2,1270.1,1.52157769]
[1760079342400,0.19302234,1270.2,1270.1,0.73944513]
[1760079343302,0.19302234,1270.2,1270.1,1.52157769]
[1760079344002,0.19302234,1270.2,1270.1,1.32602936]
[1760079344203,0.19302234,1270.2,1270.1,0.5438968]
[1760079344404,0.19302234,1270.2,1270.1,1.12982034]
[1760079346800,0.19302234,1270.2,1270.1,0.5438968]
[1760079349304,0.19302234,1270.2,1270.1,1.12913706]
[1760079352511,0.19302234,1270.2,1270.1,0.5438968]
[1760079352906,0.19302234,1270.2,1270.1,1.12913706]
[1760079353311,0.19302234,1270.2,1270.1,0.5438968]
[1760079357015,0.19302234,1270.2,1270.1,1.12842272]
[1760079359012,0.19302234,1270.2,1270.1,0.5438968]
[1760079361114,0.19302234,1270.2,1270.1,0.5413177]
[1760079363316,0.19302234,1270.2,1270.1,1.12575249]
[1760079363521,0.19302234,1270.2,1270.1,0.5413177]
[1760079364721,0.38628645,1270.2,1270.1,0.5413177]
[1760079365318,0.19302234,1270.2,1270.1,0.5413177]
[1760079366717,0.38627494,1270.2,1270.1,0.5413177]
[1760079366922,0.19302234,1270.2,1270.1,0.5413177]
[1760079367818,0.38631166,1270.2,1270.1,0.5413177]
[1760079368019,0.19302234,1270.2,1270.1,0.5413177]
[1760079368220,0.38630762,1270.2,1270.1,0.5413177]
[1760079368724,0.38630762,1270.2,1270.1,1.12513178]
[1760079368925,0.38630762,1270.2,1270.1,0.5413177]
[1760079369222,0.19302234,1270.2,1270.1,0.5413177]
[1760079370324,0.19302234,1270.2,1270.1,1.12513178]
[1760079371525,0.19302234,1270.2,1270.1,0.5413177]
[1760079371925,0.38623221,1270.2,1270.1,0.5413177]
[1760079372423,0.19302234,1270.2,1270.1,1.1250241]
[1760079373128,0.19302234,1270.2,1270.1,0.5413177]
[1760079373523,0.38619773,1270.2,1270.1,0.5413177]
[1760079373722,0.19302234,1270.2,1270.1,0.5413177]
[1760079374128,0.38613811,1270.2,1270.1,0.5413177]
[1760079374323,0.19302234,1270.2,1270.1,0.5413177]
[1760079374624,0.38614052,1270.2,1270.1,0.5413177]
[1760079374923,0.19302234,1270.2,1270.1,0.5413177]
[1760079375130,0.38618153,1270.2,1270.1,0.5413177]
[1760079375328,0.19302234,1270.2,1270.1,0.5413177]
[1760079375528,0.38616081,1270.2,1270.1,0.5413177]
[1760079375931,0.19302234,1270.2,1270.1,0.5413177]
[1760079376327,0.38617332,1270.2,1270.1,0.5413177]
[1760079376532,0.19302234,1270.2,1270.1,0.5413177]
[1760079376928,0.38617327,1270.2,1270.1,0.5413177]
[1760079381638,0.38617327,1270.2,1270.1,1.12541232]
[1760079381840,0.38617327,1270.2,1270.1,0.5413177]
[1760079382048,0.19302234,1270.2,1270.1,0.5413177]
[1760079383835,0.19302234,1270.2,1270.1,1.12541232]
[1760079388141,0.38685827,1270.2,1270.1,0.5413177]
[1760079390045,0.38685827,1270.2,1270.1,1.12812902]
[1760079390646,0.19302234,1270.2,1270.1,1.12812902]
[1760079392444,0.19302234,1270.2,1270.1,0.5413177]
[1760079392647,0.19302234,1270.2,1270.1,1.12977474]
[1760079396853,0.19302234,1270.2,1270.1,0.5413177]
[1760079398449,0.19302234,1270.2,1270.1,1.13037889]
[1760079400655,0.19302234,1270.2,1270.1,0.5413177]
[1760079402650,0.33000568,1270.2,1270.1,0.5413177]
[1760079405653,0.19302234,1270.2,1270.1,1.32345026]
[1760079406155,0.19302234,1270.2,1270.1,0.5413177]
[1760079406354,0.19302234,1270.2,1270.1,1.32660221]
[1760079406657,0.19302234,1270.2,1270.1,1.13034657]
[1760079412961,0.19302234,1270.2,1270.1,0.5413177]
[1760079414262,0.19302234,1270.2,1270.1,1.13028533]
[1760079415568,0.19302234,1270.2,1270.1,0.5413177]
[1760079428570,0.19302234,1270.2,1270.1,1.13028533]
[1760079430674,0.19302234,1270.2,1270.1,0.5413177]
[1760079432774,0.19302234,1270.2,1270.1,1.12993982]
[1760079432978,0.19302234,1270.2,1270.1,0.5413177]
[1760079433277,0.19302234,1270.2,1270.1,1.12993982]
[1760079438281,0.19302234,1270.2,1270.1,0.5413177]
[1760079440079,0.19302234,1270.2,1270.1,1.13020072]
[1760079440283,0.19302234,1270.2,1270.1,0.5413177]
[1760079450593,0.19302234,1270.2,1270.1,0.54712136]
[1760079454994,0.19302234,1270.2,1270.1,1.13645206]
[1760079455194,0.19302234,1270.2,1270.1,0.54712136]
[1760079455496,0.19302234,1270.2,1270.1,1.13645701]
[1760079455694,0.19302234,1270.2,1270.1,0.54712136]
[1760079457198,0.19302234,1270.2,1270.1,1.33240587]
[1760079457501,0.19302234,1270.2,1270.1,0.54712136]
[1760079458298,0.19302234,1270.2,1270.1,1.72061066]
[1760079458799,0.19302234,1270.2,1270.1,0.54712136]
[1760079459101,0.38793388,1270.2,1270.1,0.54712136]
[1760079459297,0.19302234,1270.2,1270.1,0.54712136]
[1760079460000,0.38792393,1270.2,1270.1,0.54712136]
[1760079460199,0.19302234,1270.2,1270.1,0.54712136]
[1760079460898,0.38792196,1270.2,1270.1,1.3325063]
[1760079461098,0.19302234,1270.2,1270.1,0.54712136]
[1760079461299,0.19302234,1270.2,1270.1,1.33241526]
[1760079461499,0.38790823,1270.2,1270.1,1.33241526]
[1760079461699,0.19302234,1270.2,1270.1,1.33241526]
[1760079461899,0.38790825,1270.2,1270.1,1.33241526]
[1760079462104,0.19302234,1270.2,1270.1,1.33241526]
[1760079462799,0.38790741,1270.2,1270.1,1.33241526]
[1760079463100,0.38789914,1270.2,1270.1,1.33241526]
[1760079463304,0.19302234,1270.2,1270.1,0.54712136]
[1760079464602,0.38786946,1270.2,1270.1,0.54712136]
[1760079466103,0.19302234,1270.2,1270.1,0.54712136]
[1760079466907,0.38788945,1270.2,1270.1,0.54712136]
[1760079467707,0.19302234,1270.2,1270.1,0.54712136]
[1760079468407,0.3878731,1270.2,1270.1,0.54712136]
[1760079468810,0.3878731,1270.2,1270.1,1.13589326]
[1760079469309,0.19302234,1270.2,1270.1,1.13589326]
[1760079471309,0.19302234,1270.2,1270.1,0.54712136]
[1760079474115,0.19302234,1270.2,1270.1,1.13592264]
[1760079475011,0.19302234,1270.2,1270.1,0.54712136]
[1760079478218,0.19302234,1270.2,1270.1,1.13597637]
[1760079480120,0.19302234,1270.2,1270.1,0.54712136]
[1760079481221,0.19302234,1270.2,1270.1,1.13597637]
[1760079482317,0.19302234,1270.2,1270.1,0.54712136]
[1760079488222,0.19302234,1270.2,1270.1,1.13597637]
[1760079488419,0.19302234,1270.2,1270.1,0.54712136]
[1760079490422,0.19302234,1270.2,1270.1,1.13616933]
[1760079492724,0.19302234,1270.2,1270.1,0.54712136]
[1760079493222,0.19302234,1270.2,1270.1,1.13613801]
[1760079495327,0.19302234,1270.2,1270.1,0.54712136]
[1760079505842,0.19302234,1270.2,1269.3,0.58908091]
[1760079506038,0.19302234,1270.2,1269.4,0.54302871]
[1760079506242,0.19302234,1270.2,1269.5,0.54302871]
[1760079506437,0.19302234,1270.2,1269.6,0.54302871]
[1760079506641,0.19302234,1270.2,1269.7,0.54302871]
[1760079506936,0.19302234,1270.2,1269.8,0.54302871]
[1760079507142,0.19302234,1270.2,1269.9,0.54302871]
[1760079507338,0.19302234,1270.2,1269.2,0.58908091]
[1760079507542,0.19302234,1270.2,1269.3,0.54236644]
[1760079507838,0.19302234,1270.2,1269.4,0.54236644]
[1760079508042,0.19302234,1270.2,1269.5,0.54236644]
[1760079508242,0.19302234,1270.2,1269.6,0.54236644]
[1760079508437,0.19302234,1270.2,1269.7,0.54236644]
[1760079508640,0.19302234,1270.2,1269.8,0.54236644]
[1760079508838,0.19302234,1270.2,1269.2,0.58908091]
[1760079509043,0.19302234,1270.2,1269.3,0.54209786]
[1760079509243,0.19302234,1270.2,1269.4,0.54209786]
[1760079509445,0.19302234,1270.2,1269.5,0.54209786]
[1760079509641,0.19302234,1270.2,1269.6,0.54209786]
[1760079509854,0.19302234,1270.2,1269.2,0.58908091]
[1760079509855,0.19302234,1270.2,1269.7,0.54209786]
[1760079510045,0.19302234,1270.2,1269.2,0.58908091]
[1760079510046,0.19302234,1270.2,1269.8,0.54209786]
[1760079510242,0.19302234,1270.2,1269.2,0.58908091]
[1760079510443,0.19302234,1270.2,1269.3,0.54169803]
[1760079510647,0.19302234,1270.2,1269.4,0.54169803]
[1760079510949,0.19302234,1270.2,1269.5,0.54169803]
[1760079511147,0.19302234,1270.2,1269.6,0.54169803]
[1760079511446,0.19302234,1270.2,1269.7,0.54169803]
[1760079511645,0.19302234,1270.2,1269.2,0.58908091]
[1760079511843,0.19302234,1270.2,1269.3,0.54153002]
[1760079512048,0.19302234,1270.2,1269.4,0.54153002]
[1760079512246,0.19302234,1270.2,1269.5,0.54153002]
[1760079512549,0.19302234,1270.2,1269.6,0.54153002]
[1760079512749,0.19302234,1270.2,1269.7,0.54153002]
[1760079513049,0.19302234,1270.2,1269.2,0.58908091]
[1760079513248,0.19302234,1270.2,1269.3,0.54135911]
[1760079513448,0.19302234,1270.2,1269.4,0.54135911]
[1760079513647,0.19302234,1270.2,1269.5,0.54135911]
[1760079513848,0.19302234,1270.2,1269.6,0.54135911]
[1760079514047,0.19302234,1270.2,1269.7,0.54135911]
[1760079514249,0.19302234,1270.2,1269.2,0.58908091]
[1760079514548,0.19302234,1270.2,1269.3,0.541064]
[1760079514747,0.19302234,1270.2,1269.4,0.541064]
[1760079514952,0.19302234,1270.2,1269.5,0.541064]
[1760079515152,0.19302234,1270.2,1269.6,0.541064]
[1760079515348,0.19302234,1270.2,1269.7,0.541064]
[1760079515647,0.19302234,1270.2,1269.2,0.58908091]
[1760079515849,0.19373714,1269.4,1269.3,1.12998173]
[1760079516253,0.19373714,1269.4,1269.3,0.54090082]
[1760079517453,0.19373714,1269.4,1269.3,1.32619472]
[1760079517650,0.19373714,1269.4,1269.3,1.52174305]
[1760079517849,0.19373714,1269.4,1269.3,0.73644915]
[1760079519157,0.19373714,1269.4,1269.3,1.90993845]
[1760079519353,0.19373714,1269.4,1269.3,1.71439012]
[1760079519655,0.19373714,1269.4,1269.3,0.54090082]
[1760079522753,0.19373714,1269.4,1269.3,1.71373872]
[1760079522954,0.19373714,1269.4,1269.3,0.54090082]
[1760079523454,0.19373714,1269.4,1269.3,1.71373872]
[1760079523757,0.19373714,1269.4,1269.3,0.54090082]
[1760079528255,0.19373714,1269.4,1269.3,1.32320458]
[1760079528761,0.19373714,1269.4,1269.3,0.54090082]
[1760079530463,0.19373714,1269.4,1269.3,1.32346194]
[1760079530664,0.38763574,1269.4,1269.3,0.54090082]
[1760079532060,0.19373714,1269.4,1269.3,1.12792855]
[1760079534263,0.19373714,1269.4,1269.3,1.32360814]
[1760079534561,0.19373714,1269.4,1269.3,1.51914153]
[1760079535163,0.19373714,1269.4,1269.3,0.73658041]
[1760079536461,0.19373714,1269.4,1269.3,1.51933897]
[1760079536667,0.19373714,1269.4,1269.3,0.73658041]
[1760079536866,0.19373714,1269.4,1269.3,1.51933897]
[1760079537468,0.19373714,1269.4,1269.3,0.73658041]
[1760079537766,0.19373714,1269.4,1269.3,0.54090082]
[1760079538363,0.19373714,1269.4,1269.3,1.12808551]
[1760079539265,0.19373714,1269.4,1269.3,0.54090082]
[1760079564376,0.19373714,1269.4,1268.7,0.58718469]
[1760079564574,0.19373714,1269.4,1268.8,0.53998902]
[1760079564877,0.19373714,1269.4,1268.9,0.53998902]
[1760079565076,0.19373714,1269.4,1269.0,0.53998902]
[1760079565275,0.19373714,1269.4,1269.1,0.53998902]
[1760079565476,0.19373714,1269.4,1269.2,0.53998902]
[1760079565676,0.19373714,1269.4,1268.7,0.58718469]
[1760079565878,0.19373714,1269.4,1268.8,0.53995437]
[1760079566073,0.19373714,1269.4,1268.9,0.53995437]
[1760079566280,0.19373714,1269.4,1269.0,0.53995437]
[1760079566478,0.19373714,1269.4,1269.1,0.53995437]
[1760079566679,0.19373714,1269.4,1268.7,0.58718469]
[1760079566880,0.19373714,1269.4,1268.8,0.53989144]
[1760079567079,0.19373714,1269.4,1268.9,0.53989144]
[1760079567278,0.19373714,1269.4,1269.0,0.53989144]
[1760079567483,0.19373714,1269.4,1269.1,0.53989144]
[1760079567681,0.19373714,1269.4,1268.6,0.58718469]
[1760079567880,0.19373714,1269.4,1268.7,0.53976173]
[1760079568084,0.19373714,1269.4,1268.8,0.53976173]
[1760079568284,0.19373714,1269.4,1268.9,0.53976173]
[1760079568485,0.19373714,1269.4,1269.0,0.53976173]
[1760079568785,0.19373714,1269.4,1269.1,0.53976173]
[1760079568986,0.19373714,1269.4,1268.6,0.58718469]
[1760079569186,0.19373714,1269.4,1268.7,0.53964031]
[1760079569387,0.19373714,1269.4,1268.8,0.53964031]
[1760079569586,0.19373714,1269.4,1268.9,0.53964031]
[1760079569787,0.19373714,1269.4,1269.0,0.53964031]
[1760079569987,0.19373714,1269.4,1269.1,0.53964031]
[1760079570188,0.19373714,1269.4,1268.5,0.58718469]
[1760079570484,0.19373714,1269.4,1268.6,0.53941007]
[1760079570790,0.19373714,1269.4,1268.7,0.53941007]
[1760079571082,0.19373714,1269.4,1268.8,0.53941007]
[1760079571288,0.19373714,1269.4,1268.9,0.53941007]
[1760079571486,0.19373714,1269.4,1268.3,0.58718469]
[1760079571687,0.1931085,1268.4,1268.3,0.58718469]
[1760079571885,0.1931085,1268.4,1268.3,1.12646378]
[1760079573490,0.1931085,1268.4,1268.3,0.53927909]
[1760079573984,0.1931085,1268.4,1268.3,1.12439247]
[1760079575392,0.1931085,1268.4,1268.3,0.53927909]
[1760079575692,0.1931085,1268.4,1268.3,1.12406942]
[1760079575892,0.19373714,1269.4,1268.3,0.53927909]
[1760079576089,0.19373714,1269.4,1268.4,1.12406985]
[1760079576389,0.19373714,1269.4,1268.5,0.53927909]
[1760079576588,0.19373714,1269.4,1268.6,0.53927909]
[1760079576792,0.19373714,1269.4,1268.7,0.53927909]
[1760079577093,0.19373714,1269.4,1268.8,0.53927909]
[1760079577393,0.19373714,1269.4,1268.3,0.58479076]
[1760079577394,0.19373714,1269.4,1268.9,0.53927909]
[1760079577692,0.19373714,1269.4,1268.3,0.58479076]
[1760079577893,0.19373714,1269.4,1268.4,0.53832001]
[1760079578091,0.19373714,1269.4,1268.5,0.53832001]
[1760079578390,0.19373714,1269.4,1268.6,0.53832001]
[1760079578693,0.19373714,1269.4,1268.7,0.53832001]
[1760079578888,0.19373714,1269.4,1268.3,0.58479076]
[1760079578889,0.19373714,1269.4,1268.8,0.53832001]
[1760079579092,0.19373714,1269.4,1268.4,0.58479076]
[1760079579093,0.19373714,1269.4,1268.9,0.53832001]
[1760079579294,0.19373714,1269.4,1268.5,0.58479076]
[1760079579494,0.19373714,1269.4,1268.6,0.53818991]
[1760079579791,0.19373714,1269.4,1268.7,0.53818991]
[1760079579990,0.19373714,1269.4,1268.8,0.53818991]
[1760079580293,0.19373714,1269.4,1268.9,0.53818991]
[1760079580591,0.19373714,1269.4,1269.0,0.53818991]
[1760079580793,0.19373714,1269.4,1268.2,0.19567959]
[1760079580991,0.19271345,1268.4,1268.3,0.53827274]
[1760079583990,0.19271345,1268.4,1268.3,1.1230635]
[1760079584289,0.19373714,1269.4,1268.3,1.1230635]
[1760079584490,0.19373714,1269.4,1268.4,0.53827274]
[1760079584690,0.19373714,1269.4,1268.5,0.53827274]
[1760079584892,0.19373714,1269.4,1268.6,0.53827274]
[1760079585094,0.19373714,1269.4,1268.7,0.53827274]
[1760079585294,0.19373714,1269.4,1268.8,0.53827274]
[1760079585495,0.19373714,1269.4,1268.3,0.58479076]
[1760079585792,0.19373714,1269.4,1268.4,0.53874786]
[1760079585991,0.19373714,1269.4,1268.5,0.53874786]
[1760079586195,0.19373714,1269.4,1268.6,0.53874786]
[1760079586494,0.19373714,1269.4,1268.7,0.53874786]
[1760079586692,0.19373714,1269.4,1268.8,0.53874786]
[1760079586993,0.19373714,1269.4,1268.3,0.58479076]
[1760079587197,0.19373714,1269.4,1268.4,0.53893634]
[1760079587394,0.19373714,1269.4,1268.5,0.53893634]
[1760079587594,0.19373714,1269.4,1268.6,0.53893634]
[1760079587799,0.19373714,1269.4,1268.7,0.53893634]
[1760079588099,0.19373714,1269.4,1268.8,0.53893634]
[1760079588296,0.19373714,1269.4,1268.2,0.58479076]
[1760079588497,0.19373714,1269.4,1268.3,0.53924486]
[1760079588703,0.19373714,1269.4,1268.4,0.53924486]
[1760079588897,0.19373714,1269.4,1268.5,0.53924486]
[1760079589100,0.19373714,1269.4,1268.6,0.53924486]
[1760079589297,0.19373714,1269.4,1268.7,0.53924486]
[1760079589596,0.19373714,1269.4,1268.8,0.53924486]
[1760079589797,0.19373714,1269.4,1268.1,0.78047035]
[1760079589997,0.19303574,1268.3,1268.2,0.53938134]
[1760079590197,0.19303574,1268.4,1268.2,1.1241721]
[1760079590403,0.19303574,1268.4,1268.3,1.1241721]
[1760079590705,0.19303574,1268.5,1268.3,0.53938134]
[1760079590898,0.19303574,1268.6,1268.4,0.53938134]
[1760079591203,0.19303574,1268.6,1268.5,0.53938134]
[1760079591400,0.19373714,1269.4,1268.5,0.53938134]
[1760079591600,0.19373714,1269.4,1268.6,0.53938134]
[1760079591805,0.19373714,1269.4,1268.7,0.53938134]
[1760079592001,0.19373714,1269.4,1268.8,0.53938134]
[1760079592206,0.19373714,1269.4,1268.9,0.53938134]
[1760079592404,0.19373714,1269.4,1269.0,0.53938134]
[1760079592703,0.19373714,1269.4,1269.1,0.53938134]
[1760079592902,0.19373714,1269.4,1268.3,0.78133866]
[1760079593101,0.19311015,1268.5,1268.4,0.53981632]
[1760079594408,0.19311015,1268.5,1268.4,1.12547539]
[1760079595705,0.19311015,1268.5,1268.4,0.53981632]
[1760079596109,0.19373714,1269.4,1268.4,0.53981632]
[1760079596410,0.19373714,1269.4,1268.5,0.53981632]
[1760079596707,0.19373714,1269.4,1268.6,0.53981632]
[1760079596908,0.19373714,1269.4,1268.7,0.53981632]
[1760079597108,0.19373714,1269.4,1268.8,0.53981632]
[1760079597410,0.19373714,1269.4,1268.9,0.53981632]
[1760079597607,0.19373714,1269.4,1268.3,0.58565907]
[1760079597811,0.19336342,1268.5,1268.4,0.54064156]
[1760079599111,0.19336342,1268.5,1268.4,1.12630063]
[1760079599912,0.19373714,1269.4,1268.4,1.12630063]
[1760079600213,0.19373714,1269.4,1268.5,0.54064156]
[1760079600411,0.19373714,1269.4,1268.6,0.54064156]
[1760079600611,0.19373714,1269.4,1268.7,0.54064156]
[1760079600808,0.19373714,1269.4,1268.8,0.54064156]
[1760079601011,0.19373714,1269.4,1268.9,0.54064156]
[1760079601211,0.19373714,1269.4,1268.4,0.58565907]
[1760079601411,0.19373714,1269.4,1268.5,0.54092102]
[1760079601610,0.19373714,1269.4,1268.6,0.54092102]
[1760079601811,0.19373714,1269.4,1268.7,0.54092102]
[1760079602011,0.19373714,1269.4,1268.8,0.54092102]
[1760079602211,0.19373714,1269.4,1268.9,0.54092102]
[1760079602413,0.19373714,1269.4,1269.0,0.54104383]
[1760079602612,0.19373714,1269.4,1268.6,0.58565907]
[1760079602817,0.19373714,1269.4,1268.7,0.54104255]
[1760079603018,0.19373714,1269.4,1268.8,0.54104255]
[1760079603316,0.19373714,1269.4,1268.9,0.54104255]
[1760079603514,0.19373714,1269.4,1268.6,0.58565907]
[1760079603515,0.19373714,1269.4,1269.0,0.54104255]
[1760079603713,0.19373714,1269.4,1268.6,0.58565907]
[1760079604015,0.19373714,1269.4,1268.7,0.54112303]
[1760079604315,0.19373714,1269.4,1268.8,0.54112303]
[1760079604517,0.19373714,1269.4,1268.9,0.54112303]
[1760079604817,0.19373714,1269.4,1268.3,0.58565907]
[1760079605018,0.19373714,1269.4,1268.4,0.54131162]
[1760079605218,0.19373714,1269.4,1268.5,0.54131162]
[1760079605415,0.19373714,1269.4,1268.6,0.54131162]
[1760079605618,0.19373714,1269.4,1268.7,0.54131162]
[1760079605818,0.19373714,1269.4,1268.8,0.54131162]
[1760079606118,0.19373714,1269.4,1268.4,0.58565907]
[1760079606416,0.13711071,1269.3,1268.5,0.54137327]
[1760079606617,0.13711071,1269.3,1268.6,0.54137327]
[1760079606817,0.13711071,1269.3,1268.7,0.54137327]
[1760079607118,0.13711071,1269.3,1268.8,0.54137327]
[1760079607319,0.13711071,1269.3,1268.4,0.58565907]
[1760079607520,0.13711071,1269.3,1268.5,0.54139752]
[1760079607716,0.13711071,1269.3,1268.4,0.58565907]
[1760079607717,0.13711071,1269.3,1268.6,0.54139752]
[1760079607914,0.13711071,1269.3,1268.7,0.54139752]
[1760079608116,0.13711071,1269.3,1268.8,0.54139752]
[1760079608320,0.13711071,1269.3,1268.4,0.58565907]